fUST/lending_fUST_20241028
["ID","MTS","AMOUNT","RATE_DAILY","PERIOD"]
[340903844,1730051440381,-562.62214605,0.000259,2]
[340903845,1730051440390,-2165.63756528,0.000259,2]
[340903846,1730051440400,-159.974343,0.00025955,2]
[340903847,1730051440410,-219.44397752,0.00026,2]
[340903848,1730051440419,-500.0,0.00026,30]
[340903849,1730051440429,-500.0,0.00026,30]
[340903850,1730051440438,-902.73087805,0.00026,30]
[340903851,1730051440448,-800.0,0.00026,30]
[340903852,1730051440458,-800.0,0.00026,30]
[340903853,1730051440467,-800.0,0.00026,30]
[340903854,1730051440477,-800.0,0.00026,30]
[340903855,1730051440487,-800.0,0.00026,30]
[340903856,1730051440497,-800.0,0.00026,30]
[340903857,1730051440508,-800.0,0.00026,30]
[340903858,1730051440520,-800.0,0.00026,30]
[340903859,1730051440532,-800.0,0.00026,30]
[340903860,1730051440541,-800.0,0.00026,30]
[340903861,1730051440551,-800.0,0.00026,30]
[340903862,1730051440561,-800.0,0.00026,30]
[340903863,1730051440571,-800.0,0.00026,30]
[340903864,1730051440582,-800.0,0.00026,30]
[340903865,1730051440593,-800.0,0.00026,30]
[340903866,1730051440606,-1450.01052201,0.00026,30]
[340903867,1730051440618,-1261.51226845,0.00026,30]
[340903868,1730051440628,-1400.0,0.00026,30]
[340903869,1730051440637,-1400.0,0.00026,30]
[340903870,1730051440649,-1400.0,0.00026,30]
[340903871,1730051440658,-1400.0,0.00026,30]
[340903872,1730051440668,-1400.0,0.00026,30]
[340903873,1730051440676,-1400.0,0.00026,30]
[340903874,1730051440686,-1400.0,0.00026,30]
[340903875,1730051440696,-1400.0,0.00026,30]
[340903876,1730051440705,-2768.28037174,0.00026,30]
[340903877,1730051440715,-700.0,0.00026,30]
[340903878,1730051440727,-700.0,0.00026,30]
[340903879,1730051440739,-700.0,0.00026,30]
[340903880,1730051440749,-700.0,0.00026,30]
[340903881,1730051440759,-700.0,0.00026,30]
[340903882,1730051440768,-700.0,0.00026,30]
[340903883,1730051440777,-700.0,0.00026,30]
[340903884,1730051440787,-700.0,0.00026,30]
[340903885,1730051440798,-1362.87161134,0.00026,30]
[340903886,1730051440809,-2909.32427475,0.00026195,8]
[340903887,1730051440820,-154.51044609,0.00026366,2]
[340903888,1730051440830,-210.061,0.0002661,2]
[340903889,1730051440840,-154.51044609,0.00026831,2]
[340903890,1730051440850,-422.848166,0.00027287,2]
[340903891,1730051440861,-154.51044609,0.00027297,2]
[340903892,1730051440871,-501.14005583,0.00027373,2]
[340903893,1730051440880,-500.0,0.00027373,2]
[340903894,1730051440890,-500.0,0.00027373,2]
[340903895,1730051440900,-509.85848933,0.00027373,2]
[340903896,1730051440910,-500.0,0.00027373,2]
[340903897,1730051440919,-151.0,0.00027373,3]
[340903898,1730051440929,-20104.2551946,0.00027377,4]
[340903899,1730051440940,-12881.56991721,0.00027387,4]
[340903914,1730051442972,-1413.3414258,0.00027387,4]
[340903915,1730051442985,-783.28005289,0.00027387,4]
[340903916,1730051442995,-420.48,0.00027387,3]
[340903917,1730051443007,-544.78647103,0.00027396,2]
[340903918,1730051443016,-360.6153457,0.00027396,2]
[340903919,1730051443025,-500.0,0.00027396,2]
[340903920,1730051443038,-500.0,0.00027396,2]
[340903921,1730051443048,-192.01447355,0.00027396,2]
[340903922,1730051443060,-190.357427,0.00027397,7]
[340903923,1730051443072,-500.0,0.00027397,30]
[340903924,1730051443082,-151.0,0.00027397,7]
[340903925,1730051443093,-500.0,0.00027397,30]
[340903926,1730051443102,-500.0,0.00027397,30]
[340903927,1730051443113,-790.97,0.00027397,30]
[340903928,1730051443123,-500.0,0.00027397,30]
[340903929,1730051443132,-151.0,0.00027397,7]
[340903930,1730051443144,-151.0,0.00027397,7]
[340903931,1730051443153,-151.0,0.00027397,7]
[340903932,1730051443163,-1071.46,0.00027397,30]
[340903933,1730051443175,-500.0,0.00027397,30]
[340903934,1730051443184,-1355.11,0.00027397,7]
[340903935,1730051443194,-500.0,0.00027397,30]
[340903936,1730051443203,-631.86,0.00027397,30]
[340903937,1730051443213,-522.28,0.00027397,30]
[340903938,1730051443222,-530.32,0.00027397,30]
[340903939,1730051443232,-500.0,0.00027397,30]
[340903940,1730051443242,-500.0,0.00027397,30]
[340903941,1730051443254,-391.2207816,0.00027397,30]
[340903956,1730051593465,3000.0,0.000191,2]
[340903957,1730051594047,3000.0,0.0001911,2]
[340903958,1730051594375,3000.0,0.0001912,2]
[340903959,1730051594670,3000.0,0.0001913,2]
[340903960,1730051595000,3000.0,0.0001914,2]
[340903961,1730051595314,3000.0,0.0001915,2]
[340903962,1730051595829,3000.0,0.0001916,2]
[340903963,1730051596026,3000.0,0.0001917,2]
[340903964,1730051596372,3000.0,0.0001918,2]
[340903965,1730051596713,3000.0,0.0001919,2]
[340903966,1730051597045,3000.0,0.000192,2]
[340903967,1730051597382,3000.0,0.0001921,2]
[340903968,1730051597813,3000.0,0.0001922,2]
[340903969,1730051598248,3000.0,0.0001923,2]
[340903970,1730051598677,3000.0,0.0001924,2]
[340903971,1730051599097,3000.0,0.0001925,2]
[340903972,1730051599480,3000.0,0.0001926,2]
[340903973,1730051599887,3000.0,0.0001927,2]
[340903974,1730051600310,3000.0,0.0001928,2]
[340903975,1730051600748,3000.0,0.0001929,2]
[340903976,1730051601147,3000.0,0.000193,2]
[340903977,1730051601494,3000.0,0.0001931,2]
[340903978,1730051601942,3000.0,0.0001932,2]
[340903979,1730051602346,3000.0,0.0001933,2]
[340903980,1730051602828,3000.0,0.0001934,2]
[340903981,1730051603199,3000.0,0.0001935,2]
[340903982,1730051603611,3000.0,0.0001936,2]
[340903983,1730051604274,3000.0,0.0001937,2]
[340903984,1730051604594,3000.0,0.0001938,2]
[340903985,1730051605034,3000.0,0.0001939,2]
[340903986,1730051605491,3000.0,0.000194,2]
[340903987,1730051606160,3000.0,0.0001941,2]
[340903988,1730051606341,3000.0,0.0001942,2]
[340903989,1730051607151,3000.0,0.0001943,2]
[340903990,1730051607837,3000.0,0.0001944,2]
[340903991,1730051608282,3000.0,0.0001945,2]
[340903992,1730051608890,3000.0,0.0001946,2]
[340903993,1730051609126,3000.0,0.0001947,2]
[340903994,1730051609480,3000.0,0.0001948,2]
[340903995,1730051609804,3000.0,0.0001949,2]
[340903996,1730051610109,3000.0,0.000195,2]
[340903997,1730051610417,3000.0,0.0001951,2]
[340903998,1730051610778,3000.0,0.0001952,2]
[340903999,1730051611283,3000.0,0.0001953,2]
[340904000,1730051611579,3000.0,0.0001954,2]
[340904001,1730051611882,3000.0,0.0001955,2]
[340904002,1730051612225,3000.0,0.0001956,2]
[340904003,1730051612515,3000.0,0.0001957,2]
[340904004,1730051612804,3000.0,0.0001958,2]
[340904005,1730051613118,3000.0,0.0001959,2]
[340904006,1730051613403,3000.0,0.000196,2]
[340904007,1730051613709,3000.0,0.0001961,2]
[340904008,1730051614025,3000.0,0.0001962,2]
[340904009,1730051614376,167.082146,0.00013973,2]
[340904010,1730051614407,3000.0,0.0001963,2]
[340904011,1730051614714,3000.0,0.0001964,2]
[340904012,1730051615089,3000.0,0.0001965,2]
[340904013,1730051615410,3000.0,0.0001966,2]
[340904014,1730051615893,3000.0,0.0001967,2]
[340904015,1730051616378,3000.0,0.0001968,2]
[340904016,1730051616719,3000.0,0.0001969,2]
[340904017,1730051617016,3000.0,0.000197,2]
[340904018,1730051617435,3000.0,0.0001971,2]
[340904019,1730051617923,3000.0,0.0001972,2]
[340904020,1730051618403,3000.0,0.0001973,2]
[340904021,1730051618768,4287.105594,0.0001974,2]
[340904034,1730052100410,200.000002,0.00013973,2]
[340904037,1730052193020,3000.0,0.000189,2]
[340904038,1730052193715,3000.0,0.0001891,2]
[340904039,1730052194547,3000.0,0.0001892,2]
[340904040,1730052194951,3000.0,0.0001893,2]
[340904041,1730052195412,3000.0,0.0001894,2]
[340904042,1730052195847,3000.0,0.0001895,2]
[340904043,1730052196352,3000.0,0.0001896,2]
[340904044,1730052196810,3000.0,0.0001897,2]
[340904045,1730052197243,3000.0,0.0001898,2]
[340904046,1730052198048,3000.0,0.0001899,2]
[340904047,1730052198780,3000.0,0.00019,2]
[340904048,1730052199248,3000.0,0.0001901,2]
[340904049,1730052199629,3000.0,0.0001902,2]
[340904050,1730052200085,3000.0,0.0001903,2]
[340904051,1730052200439,3000.0,0.0001904,2]
[340904052,1730052200890,3000.0,0.0001905,2]
[340904053,1730052201467,3000.0,0.0001906,2]
[340904054,1730052201701,3000.0,0.0001907,2]
[340904055,1730052202148,3000.0,0.0001908,2]
[340904056,1730052202531,3000.0,0.0001909,2]
[340904057,1730052202919,3000.0,0.000191,2]
[340904058,1730052203431,3000.0,0.0001911,2]
[340904059,1730052203898,3000.0,0.0001912,2]
[340904060,1730052205019,3000.0,0.0001913,2]
[340904061,1730052205893,3000.0,0.0001914,2]
[340904062,1730052206372,3000.0,0.0001915,2]
[340904063,1730052206914,3000.0,0.0001916,2]
[340904064,1730052207328,3000.0,0.0001917,2]
[340904065,1730052207719,3000.0,0.0001918,2]
[340904066,1730052208538,4103.690008,0.0001919,2]
[340904115,1730052632126,-166.666666,0.00023873,2]
[340904117,1730052632136,-166.666666,0.00024524,2]
[340904119,1730052632145,-164.247762,0.00024855,2]
[340904121,1730052632155,-159.418906,0.00025005,2]
[340904154,1730052635428,167.082146,0.00013973,2]
[340904161,1730052638330,-500.581094,0.00025005,2]
[340904162,1730052638341,-167.082146,0.00025156,2]
[340904163,1730052638351,-166.666666,0.00025175,2]
[340904164,1730052638363,-166.666666,0.00025825,2]
[340904165,1730052638375,-2015.71761126,0.000259,2]
[340904168,1730052640243,-229.70281222,0.000259,2]
[340904169,1730052640256,-185.005971,0.00025948,2]
[340904170,1730052640266,-300.0,0.00025998,2]
[340904171,1730052640276,-5000.0,0.00025999,2]
[340904172,1730052640288,-300.0,0.00025999,2]
[340904173,1730052640298,-200.0,0.00025999,10]
[340904174,1730052640309,-220.19925272,0.00026,2]
[340904175,1730052640323,-500.0,0.00026,30]
[340904176,1730052640333,-500.0,0.00026,30]
[340904177,1730052640343,-500.0,0.00026,30]
[340904178,1730052640352,-500.0,0.00026,30]
[340904179,1730052640362,-500.0,0.00026,30]
[340904180,1730052640372,-500.0,0.00026,30]
[340904181,1730052640383,-500.0,0.00026,30]
[340904182,1730052640394,-500.0,0.00026,30]
[340904183,1730052640403,-500.0,0.00026,30]
[340904184,1730052640413,-500.0,0.00026,30]
[340904185,1730052640423,-500.0,0.00026,30]
[340904186,1730052640432,-500.0,0.00026,30]
[340904187,1730052640441,-500.0,0.00026,30]
[340904188,1730052640451,-500.0,0.00026,30]
[340904189,1730052640461,-500.0,0.00026,30]
[340904190,1730052640473,-500.0,0.00026,30]
[340904191,1730052640484,-900.0,0.00026,30]
[340904192,1730052640496,-500.0,0.00026,30]
[340904193,1730052640508,-500.0,0.00026,30]
[340904194,1730052640518,-900.0,0.00026,30]
[340904195,1730052640529,-900.0,0.00026,30]
[340904196,1730052640539,-900.0,0.00026,30]
[340904197,1730052640549,-900.0,0.00026,30]
[340904198,1730052640558,-900.0,0.00026,30]
[340904199,1730052640568,-900.0,0.00026,30]
[340904200,1730052640582,-900.0,0.00026,30]
[340904201,1730052640594,-900.0,0.00026,30]
[340904202,1730052640605,-900.0,0.00026,30]
[340904203,1730052640618,-900.0,0.00026,30]
[340904204,1730052640630,-500.0,0.00026,30]
[340904205,1730052640641,-500.0,0.00026,30]
[340904206,1730052640650,-500.0,0.00026,30]
[340904207,1730052640660,-500.0,0.00026,30]
[340904208,1730052640671,-500.0,0.00026,30]
[340904209,1730052640683,-500.0,0.00026,30]
[340904210,1730052640693,-500.0,0.00026,30]
[340904211,1730052640704,-600.0,0.00026,30]
[340904212,1730052640714,-200.0,0.00026221,2]
[340904213,1730052640724,-380.0,0.00026221,2]
[340904214,1730052640737,-1656.6552214,0.00026221,2]
[340904215,1730052640747,-208.5541096,0.0002643,2]
[340904216,1730052640758,-774.736,0.00026435,10]
[340904217,1730052640769,-166.666666,0.00026476,2]
[340904218,1730052640780,-600.0,0.00026564,2]
[340904219,1730052640790,-877.30917746,0.00026841,2]
[340904220,1730052640801,-151.0,0.00027018,2]
[340904221,1730052640810,-166.666666,0.00027127,2]
[340904222,1730052640820,-151.0,0.00027235,3]
[340904223,1730052640831,-1000.0,0.00027284,2]
[340904224,1730052640843,-3000.0,0.000273,2]
[340904225,1730052640855,-3000.0,0.0002731,2]
[340904226,1730052640865,-3000.0,0.0002732,2]
[340904227,1730052640877,-3000.0,0.0002733,2]
[340904228,1730052640887,-3000.0,0.0002734,2]
[340904229,1730052640899,-3000.0,0.0002735,2]
[340904230,1730052640908,-3000.0,0.0002736,2]
[340904231,1730052640919,-3000.0,0.0002737,2]
[340904232,1730052640932,-500.0,0.00027373,2]
[340904233,1730052640944,-364.26457498,0.00027373,2]
[340904234,1730052640956,-500.0,0.00027373,2]
[340904235,1730052640967,-500.0,0.00027373,2]
[340904236,1730052640978,-500.0,0.00027373,2]
[340904237,1730052640989,-500.0,0.00027373,2]
[340904238,1730052640999,-73108.589553,0.00027374,4]
[340904239,1730052641009,-5277.36698762,0.00027374,4]
[340904240,1730052641020,-10444.0842219,0.00027374,4]
[340904241,1730052641030,-753.90956966,0.00027374,4]
[340904242,1730052641040,-5000.0,0.00027376,2]
[340904243,1730052641050,-5000.0,0.00027376,2]
[340904244,1730052641059,-713.60954553,0.00027376,2]
[340904245,1730052641069,-3000.0,0.0002738,2]
[340904246,1730052641078,-476.81,0.00027383,2]
[340904247,1730052641091,-476.81,0.00027383,2]
[340904248,1730052641100,-476.81,0.00027383,2]
[340904249,1730052641110,-476.81,0.00027383,2]
[340904250,1730052641119,-476.81,0.00027383,2]
[340904251,1730052641129,-476.81,0.00027383,2]
[340904252,1730052641139,-476.81,0.00027383,2]
[340904253,1730052641148,-476.81,0.00027383,2]
[340904254,1730052641158,-476.81,0.00027383,2]
[340904255,1730052641167,-476.81,0.00027383,2]
[340904256,1730052641176,-500.0,0.00027383,2]
[340904257,1730052641186,-565.54560846,0.00027383,2]
[340904258,1730052641199,-500.0,0.00027383,2]
[340904259,1730052641208,-461.22923119,0.00027383,2]
[340904260,1730052641218,-125329.010662,0.00027384,4]
[340904261,1730052641228,-9046.91483592,0.00027384,4]
[340904262,1730052641238,-151.0,0.00027384,7]
[340904263,1730052641248,-1179.644685,0.00027384,7]
[340904264,1730052641258,-1179.644685,0.00027384,7]
[340904265,1730052641269,-151.0,0.00027384,7]
[340904266,1730052641278,-151.0,0.00027384,7]
[340904267,1730052641288,-151.0,0.00027384,7]
[340904268,1730052641299,-151.0,0.00027384,7]
[340904269,1730052641308,-151.0,0.00027384,7]
[340904270,1730052641318,-151.0,0.00027384,7]
[340904271,1730052641327,-151.0,0.00027384,7]
[340904272,1730052641338,-303.574176,0.00027384,7]
[340904273,1730052641348,-303.574176,0.00027384,7]
[340904274,1730052641357,-151.0,0.00027384,7]
[340904275,1730052641367,-830.248591,0.00027384,7]
[340904276,1730052641376,-830.248591,0.00027384,7]
[340904277,1730052641387,-552.887305,0.00027384,7]
[340904278,1730052641397,-552.887305,0.00027384,7]
[340904279,1730052641407,-151.0,0.00027384,7]
[340904280,1730052641416,-725.174488,0.00027384,7]
[340904281,1730052641426,-364.282999,0.00027384,7]
[340904282,1730052641436,-725.174488,0.00027384,7]
[340904283,1730052641445,-151.0,0.00027384,7]
[340904284,1730052641455,-364.282999,0.00027384,7]
[340904285,1730052641464,-151.0,0.00027384,7]
[340904286,1730052641474,-197.071348,0.00027384,7]
[340904287,1730052641484,-197.071348,0.00027384,7]
[340904288,1730052641494,-2087.420149,0.00027384,7]
[340904289,1730052641503,-2087.420149,0.00027384,7]
[340904290,1730052641512,-151.0,0.00027384,7]
[340904291,1730052641522,-653.819004,0.00027384,7]
[340904292,1730052641532,-653.819004,0.00027384,7]
[340904293,1730052641541,-152.085734,0.00027384,7]
[340904294,1730052641550,-230.502505,0.00027384,7]
[340904295,1730052641560,-230.502505,0.00027384,7]
[340904296,1730052641569,-151.0,0.00027384,7]
[340904297,1730052641579,-151.0,0.00027384,7]
[340904298,1730052641589,-154.59055,0.00027384,7]
[340904299,1730052641598,-461.591865,0.00027384,7]
[340904300,1730052641607,-461.591865,0.00027384,7]
[340904301,1730052641617,-230.529565,0.00027387,7]
[340904302,1730052641627,-151.0,0.00027387,7]
[340904303,1730052641636,-151.0,0.00027387,7]
[340904304,1730052641647,-174.087908,0.00027387,7]
[340904305,1730052641656,-174.087908,0.00027387,7]
[340904306,1730052641666,-151.0,0.00027387,7]
[340904307,1730052641676,-151.0,0.00027387,7]
[340904308,1730052641686,-151.0,0.00027387,7]
[340904309,1730052641695,-151.0,0.00027387,7]
[340904310,1730052641705,-151.0,0.00027387,7]
[340904311,1730052641715,-296.827879,0.00027387,7]
[340904312,1730052641724,-891.514178,0.00027387,7]
[340904313,1730052641735,-891.514178,0.00027387,7]
[340904314,1730052641744,-187.145651,0.00027387,7]
[340904315,1730052641754,-187.145651,0.00027387,7]
[340904316,1730052641764,-151.0,0.00027387,3]
[340904317,1730052641773,-151.0,0.00027387,7]
[340904318,1730052641782,-151.0,0.00027387,7]
[340904319,1730052641792,-1179.644685,0.00027387,7]
[340904320,1730052641801,-1179.644685,0.00027387,7]
[340904321,1730052641810,-151.0,0.00027387,7]
[340904322,1730052641820,-151.0,0.00027387,7]
[340904323,1730052641831,-176.893658,0.00027387,7]
[340904324,1730052641841,-151.0,0.00027387,7]
[340904325,1730052641850,-151.0,0.00027387,7]
[340904326,1730052641860,-151.0,0.00027387,7]
[340904327,1730052641869,-303.574176,0.00027387,7]
[340904328,1730052641879,-303.574176,0.00027387,7]
[340904329,1730052641888,-151.0,0.00027387,7]
[340904330,1730052641898,-830.248591,0.00027387,7]
[340904331,1730052641908,-830.248591,0.00027387,7]
[340904332,1730052641917,-552.887305,0.00027387,7]
[340904333,1730052641928,-552.887305,0.00027387,7]
[340904334,1730052641941,-725.174488,0.00027387,7]
[340904335,1730052641952,-364.282999,0.00027387,7]
[340904336,1730052641962,-725.174488,0.00027387,7]
[340904337,1730052641972,-364.282999,0.00027387,7]
[340904338,1730052641983,-197.071348,0.00027387,7]
[340904339,1730052641992,-197.071348,0.00027387,7]
[340904340,1730052642001,-2087.420149,0.00027387,7]
[340904341,1730052642011,-2087.420149,0.00027387,7]
[340904342,1730052642023,-151.0,0.00027387,7]
[340904343,1730052642032,-653.819004,0.00027387,7]
[340904344,1730052642043,-653.819004,0.00027387,7]
[340904345,1730052642052,-230.502505,0.00027387,7]
[340904346,1730052642062,-230.502505,0.00027387,7]
[340904347,1730052642072,-151.0,0.00027387,7]
[340904348,1730052642082,-151.0,0.00027387,7]
[340904349,1730052642092,-461.591865,0.00027387,7]
[340904350,1730052642102,-461.591865,0.00027387,7]
[340904351,1730052642112,-3000.0,0.0002739,2]
[340904352,1730052642122,-55421.54423018,0.00027394,2]
[340904353,1730052642133,-36154.23803998,0.00027394,2]
[340904354,1730052642142,-156667.53910438,0.00027394,2]
[340904355,1730052642192,-266507.79554366,0.00027394,2]
[340904382,1730052643203,-3527.530291,0.00027394,2]
[340904383,1730052643215,-3000.0,0.00027394,2]
[340904386,1730052646135,-422.76974132,0.00027394,2]
[340904387,1730052646147,-69739.03720596,0.00027394,2]
[340904388,1730052646157,-252.645245,0.00027394,7]
[340904389,1730052646168,-151.0,0.00027394,7]
[340904390,1730052646177,-151.0,0.00027394,7]
[340904391,1730052646187,-151.0,0.00027394,7]
[340904392,1730052646196,-151.0,0.00027394,7]
[340904393,1730052646206,-151.0,0.00027394,7]
[340904394,1730052646217,-151.0,0.00027394,7]
[340904395,1730052646226,-151.0,0.00027394,7]
[340904396,1730052646237,-151.0,0.00027394,7]
[340904397,1730052646248,-151.0,0.00027394,7]
[340904398,1730052646258,-151.0,0.00027394,7]
[340904399,1730052646268,-151.0,0.00027394,7]
[340904400,1730052646278,-244.922673,0.00027394,7]
[340904401,1730052646288,-244.922673,0.00027394,7]
[340904402,1730052646299,-244.922673,0.00027394,7]
[340904403,1730052646308,-244.922673,0.00027394,7]
[340904404,1730052646317,-244.922673,0.00027394,7]
[340904405,1730052646327,-244.922673,0.00027394,7]
[340904406,1730052646336,-151.0,0.00027394,7]
[340904407,1730052646346,-151.0,0.00027394,7]
[340904408,1730052646355,-151.0,0.00027394,7]
[340904409,1730052646365,-151.0,0.00027394,7]
[340904410,1730052646374,-151.0,0.00027394,7]
[340904411,1730052646384,-151.0,0.00027394,7]
[340904412,1730052646394,-151.0,0.00027394,7]
[340904413,1730052646403,-174.087908,0.00027394,7]
[340904414,1730052646413,-174.087908,0.00027394,7]
[340904415,1730052646422,-174.087908,0.00027394,7]
[340904416,1730052646432,-174.087908,0.00027394,7]
[340904417,1730052646441,-174.087908,0.00027394,7]
[340904418,1730052646452,-174.087908,0.00027394,7]
[340904419,1730052646461,-151.0,0.00027394,7]
[340904420,1730052646471,-151.0,0.00027394,7]
[340904421,1730052646480,-151.0,0.00027394,7]
[340904422,1730052646489,-151.0,0.00027394,7]
[340904423,1730052646498,-151.0,0.00027394,7]
[340904424,1730052646507,-151.0,0.00027394,7]
[340904425,1730052646517,-151.0,0.00027394,7]
[340904426,1730052646526,-151.0,0.00027394,7]
[340904427,1730052646536,-151.0,0.00027394,7]
[340904428,1730052646545,-151.0,0.00027394,7]
[340904429,1730052646555,-216.483461,0.00027394,7]
[340904430,1730052646565,-151.0,0.00027394,7]
[340904431,1730052646574,-221.384358,0.00027394,7]
[340904432,1730052646583,-891.514178,0.00027394,7]
[340904433,1730052646593,-891.514178,0.00027394,7]
[340904434,1730052646603,-891.514178,0.00027394,7]
[340904435,1730052646613,-891.514178,0.00027394,7]
[340904436,1730052646623,-891.514178,0.00027394,7]
[340904437,1730052646633,-891.514178,0.00027394,7]
[340904438,1730052646643,-187.145651,0.00027394,7]
[340904439,1730052646652,-187.145651,0.00027394,7]
[340904440,1730052646661,-187.145651,0.00027394,7]
[340904441,1730052646670,-187.145651,0.00027394,7]
[340904442,1730052646680,-187.145651,0.00027394,7]
[340904443,1730052646689,-187.145651,0.00027394,7]
[340904444,1730052646699,-151.0,0.00027394,3]
[340904445,1730052646708,-151.0,0.00027394,3]
[340904446,1730052646718,-177.223482,0.00027394,3]
[340904447,1730052646728,-1010.695594,0.00027394,7]
[340904448,1730052646737,-1010.695594,0.00027394,7]
[340904449,1730052646746,-1010.695594,0.00027394,7]
[340904450,1730052646756,-1010.695594,0.00027394,7]
[340904451,1730052646765,-151.0,0.00027394,7]
[340904452,1730052646775,-151.0,0.00027394,7]
[340904453,1730052646784,-151.0,0.00027394,7]
[340904454,1730052646794,-267.140276,0.00027394,7]
[340904455,1730052646812,-1010.695594,0.00027394,7]
[340904456,1730052646824,-1010.695594,0.00027394,7]
[340904457,1730052646834,-1010.695594,0.00027394,7]
[340904458,1730052646844,-1010.695594,0.00027394,7]
[340904459,1730052646854,-1179.644685,0.00027394,7]
[340904460,1730052646864,-1179.644685,0.00027394,7]
[340904461,1730052646873,-1179.644685,0.00027394,7]
[340904462,1730052646883,-1179.644685,0.00027394,7]
[340904463,1730052646893,-1179.644685,0.00027394,7]
[340904464,1730052646903,-1179.644685,0.00027394,7]
[340904465,1730052646913,-1179.644685,0.00027394,7]
[340904466,1730052646923,-151.0,0.00027394,7]
[340904467,1730052646933,-151.0,0.00027394,7]
[340904468,1730052646946,-151.0,0.00027394,7]
[340904469,1730052646956,-1179.644685,0.00027394,7]
[340904470,1730052646967,-151.0,0.00027394,7]
[340904471,1730052646978,-151.0,0.00027394,7]
[340904472,1730052646988,-151.0,0.00027394,7]
[340904473,1730052646998,-151.0,0.00027394,7]
[340904474,1730052647007,-151.0,0.00027394,7]
[340904475,1730052647019,-151.0,0.00027394,7]
[340904476,1730052647028,-1011.079166,0.00027394,7]
[340904477,1730052647038,-151.0,0.00027394,7]
[340904478,1730052647048,-1011.079166,0.00027394,7]
[340904479,1730052647057,-1011.079166,0.00027394,7]
[340904480,1730052647067,-1011.079166,0.00027394,7]
[340904481,1730052647076,-1011.079166,0.00027394,7]
[340904482,1730052647086,-1011.079166,0.00027394,7]
[340904483,1730052647096,-1011.079166,0.00027394,7]
[340904484,1730052647106,-1011.079166,0.00027394,7]
[340904485,1730052647116,-303.574176,0.00027394,7]
[340904486,1730052647125,-303.574176,0.00027394,7]
[340904487,1730052647135,-303.574176,0.00027394,7]
[340904488,1730052647144,-303.574176,0.00027394,7]
[340904489,1730052647154,-303.574176,0.00027394,7]
[340904490,1730052647164,-303.574176,0.00027394,7]
[340904491,1730052647173,-303.574176,0.00027394,7]
[340904492,1730052647183,-303.574176,0.00027394,7]
[340904493,1730052647192,-303.574176,0.00027394,7]
[340904494,1730052647202,-303.574176,0.00027394,7]
[340904495,1730052647212,-151.0,0.00027394,7]
[340904496,1730052647221,-151.0,0.00027394,7]
[340904497,1730052647231,-208.2668,0.00027394,7]
[340904498,1730052647241,-830.248591,0.00027394,7]
[340904499,1730052647252,-830.248591,0.00027394,7]
[340904500,1730052647264,-830.248591,0.00027394,7]
[340904501,1730052647274,-830.248591,0.00027394,7]
[340904502,1730052647284,-830.248591,0.00027394,7]
[340904503,1730052647297,-830.248591,0.00027394,7]
[340904504,1730052647307,-830.248591,0.00027394,7]